[Event "Deutscher Jugend Online Cup 2020"]
[Site "Tornelo"]
[Date "2020.11.14"]
[Round "3.1"]
[White "Trunz, Tamila"]
[Black "Woiteck, Sophia"]
[Result "1-0"]
[ECO "B24"]
[WhiteElo "1379"]
[BlackElo "1285"]
[Annotator "NA RC"]
[PlyCount "79"]
[EventDate "2020.11.13"]
[EventType "k.o."]
[SourceTitle "playchess.com"]
[Source "ChessBase"]
[SourceQuality "1"]
[TimeControl "600+3"]

1. e4 {[%emt 0:05:06]} c5 {[%emt 0:06:05]} 2. Nc3 {[%emt 0:00:07]} d6 {[%emt 0:00:06]} 3. g3 {[%emt 0:00:06]} Nf6 {[%emt 0:00:05]} 4. Bg2 {[%emt 0:00:05]} a6 {[%emt 0:00:05]} 5. d3 {[%emt 0:00:05]} Nc6 {[%emt 0:00:05]} 6. Nge2 {[%emt 0:00:06]} Bd7 {[%emt 0:00:05]} 7. O-O {[%emt 0:00:05]} e6 {[%emt 0:00:04]} 8. Be3 {[%emt 0:00:07]} Be7 {[%emt 0:00:06]} 9. h3 {[%emt 0:00:06]} O-O {[%emt 0:00:05]} 10. f4 {[%emt 0:00:07]} b5 {[%emt 0:00:23]} 11. g4 {[%emt 0:00:06]} b4 {[%emt 0:00:09]} 12. Nb1 {[%emt 0:00:05]} Ne8 {[%emt 0:00:10]} 13. Ng3 {[%emt 0:00:06]} Bf6 {[%emt 0:00:07]} 14. c3 {[%emt 0:00:07]} bxc3 {[%emt 0:00:14]} 15. bxc3 {[%emt 0:00:05]} Qa5 {[%emt 0:00:16]} 16. d4 {[%emt 0:00:11]} cxd4 {[%emt 0:00:08]} 17. cxd4 {[%emt 0:00:06]} Qb6 {[%emt 0:00:33]} 18. Ne2 {[%emt 0:00:20]} Nc7 {[%emt 0:00:21]} 19. Qd2 {[%emt 0:00:12]} Qb4 {[%emt 0:00:12]} 20. Qxb4 {[%emt 0:00:13]} Nxb4 {[%emt 0:00:05]} 21. Na3 {[%emt 0:00:21]} Be7 {[%emt 0:00:07]} 22. Rab1 {[%emt 0:00:11]} Rab8 {[%emt 0:00:06]} 23. Rfc1 {[%emt 0:00:20]} Rfc8 {[%emt 0:00:14]} 24. Bd2 {[%emt 0:00:35]} a5 {[%emt 0:00:07]} 25. Rc4 {[%emt 0:00:43]} d5 {[%emt 0:00:16]} 26. exd5 {[%emt 0:00:06]} exd5 {[%emt 0:00:12]} 27. Rcc1 {[%emt 0:00:11]} Ne6 {[%emt 0:00:14]} 28. f5 {[%emt 0:00:19]} Nf8 {[%emt 0:00:10]} 29. Bxb4 {[%emt 0:00:08]} axb4 {[%emt 0:00:07]} 30. Nc2 {[%emt 0:00:15]} Rc7 {[%emt 0:00:10]} 31. Bxd5 {[%emt 0:00:08]} Bc6 {[%emt 0:00:09]} 32. Bxc6 {[%emt 0:00:06]} Rxc6 {[%emt 0:00:04]} 33. Ne3 {[%emt 0:00:11]} Rxc1+ {[%emt 0:00:06]} 34. Nxc1 {[%emt 0:00:07]} Bf6 {[%emt 0:00:05]} 35. d5 {[%emt 0:00:06]} Nd7 {[%emt 0:00:06]} 36. d6 {[%emt 0:00:06]} Be5 {[%emt 0:00:06]} 37. Kf2 {[%emt 0:00:05]} Bxd6 {[%emt 0:00:05]} 38. Nd3 {[%emt 0:00:06]} Bc7 {[%emt 0:00:05]} 39. Nd5 {[%emt 0:00:05]} Bd8 {[%emt 0:00:04]} 40. N5xb4 {[%emt 0:00:05]} 1-0

[Event "Deutscher Jugend Online Cup 2020"]
[Site "Tornelo"]
[Date "2020.11.14"]
[Round "3.2"]
[White "N_____, L_____"]
[Black "Marcziter, Alex"]
[Result "1/2-1/2"]
[ECO "C77"]
[WhiteElo "1714"]
[BlackElo "1401"]
[Annotator "NA RC"]
[PlyCount "157"]
[EventDate "2020.11.13"]
[EventType "k.o."]
[SourceTitle "playchess.com"]
[Source "ChessBase"]
[SourceQuality "1"]
[TimeControl "600+3"]

1. e4 {[%emt 0:05:06]} e5 {[%emt 0:06:05]} 2. Nf3 {[%emt 0:00:04]} Nc6 {[%emt 0:00:05]} 3. Bb5 {[%emt 0:00:05]} a6 {[%emt 0:00:05]} 4. Ba4 {[%emt 0:00:04]} Nf6 {[%emt 0:00:05]} 5. d3 {[%emt 0:00:05]} b5 {[%emt 0:00:05]} 6. Bb3 {[%emt 0:00:05]} Be7 {[%emt 0:00:04]} 7. Nc3 {[%emt 0:00:04]} Na5 {[%emt 0:00:05]} 8. Bd5 {[%emt 0:00:14]} Nxd5 {[%emt 0:00:06]} 9. Nxd5 {[%emt 0:00:05]} O-O {[%emt 0:00:06]} 10. O-O {[%emt 0:00:04]} c5 {[%emt 0:00:11]} 11. c3 {[%emt 0:00:10]} d6 {[%emt 0:00:06]} 12. d4 {[%emt 0:00:06]} cxd4 {[%emt 0:00:05]} 13. cxd4 {[%emt 0:00:05]} exd4 {[%emt 0:00:05]} 14. Nxd4 {[%emt 0:00:05]} Bb7 {[%emt 0:00:07]} 15. Be3 {[%emt 0:00:06]} Nc6 {[%emt 0:00:06]} 16. Nxc6 {[%emt 0:00:05]} Bxc6 {[%emt 0:00:04]} 17. Rc1 {[%emt 0:00:04]} Rc8 {[%emt 0:00:06]} 18. Qd2 {[%emt 0:00:10]} Bxd5 {[%emt 0:00:07]} 19. exd5 {[%emt 0:00:05]} Bf6 {[%emt 0:00:07]} 20. Rc2 {[%emt 0:00:07]} Rxc2 {[%emt 0:00:05]} 21. Qxc2 {[%emt 0:00:05]} Qc8 {[%emt 0:00:05]} 22. Rc1 {[%emt 0:00:08]} Qxc2 {[%emt 0:00:06]} 23. Rxc2 {[%emt 0:00:04]} Re8 {[%emt 0:00:05]} 24. b3 {[%emt 0:00:11]} Bd4 {[%emt 0:00:07]} 25. Rc6 {[%emt 0:00:24]} Bxe3 {[%emt 0:00:04]} 26. fxe3 {[%emt 0:00:05]} Rd8 {[%emt 0:00:06]} 27. Rxa6 {[%emt 0:00:05]} h6 {[%emt 0:00:04]} 28. Rb6 {[%emt 0:00:05]} Kf8 {[%emt 0:00:06]} 29. Rxb5 {[%emt 0:00:05]} Rc8 {[%emt 0:00:04]} 30. a4 {[%emt 0:00:09]} Rc2 {[%emt 0:00:07]} 31. b4 {[%emt 0:00:10]} Ke7 {[%emt 0:00:06]} 32. a5 {[%emt 0:00:05]} Ra2 {[%emt 0:00:07]} 33. Rb7+ {[%emt 0:00:07]} Ke8 {[%emt 0:00:05]} 34. b5 {[%emt 0:00:04]} Rxa5 {[%emt 0:00:05]} 35. b6 {[%emt 0:00:06]} Rb5 {[%emt 0:00:09]} 36. Rb8+ {[%emt 0:00:07]} Ke7 {[%emt 0:00:06]} 37. b7 {[%emt 0:00:07]} Kf6 {[%emt 0:00:04]} 38. Kf2 {[%emt 0:00:05]} Rb2+ {[%emt 0:00:06]} 39. Kf3 {[%emt 0:00:05]} g6 {[%emt 0:00:05]} 40. Rd8 {[%emt 0:00:10]} Rxb7 {[%emt 0:00:06]} 41. Rxd6+ {[%emt 0:00:04]} Kg7 {[%emt 0:00:05]} 42. g3 {[%emt 0:00:09]} Rb5 {[%emt 0:00:06]} 43. e4 {[%emt 0:00:05]} Kf8 {[%emt 0:00:05]} 44. Kf4 {[%emt 0:00:07]} Ke7 {[%emt 0:00:05]} 45. Ra6 {[%emt 0:00:04]} Rb1 {[%emt 0:00:07]} 46. h4 {[%emt 0:00:05]} Rf1+ {[%emt 0:00:05]} 47. Kg4 {[%emt 0:00:04]} h5+ {[%emt 0:00:06]} 48. Kh3 {[%emt 0:00:08]} Re1 {[%emt 0:00:05]} 49. Ra4 {[%emt 0:00:07]} Kd6 {[%emt 0:00:05]} 50. Kg2 {[%emt 0:00:05]} Re3 {[%emt 0:00:11]} 51. Kf2 {[%emt 0:00:04]} Rb3 {[%emt 0:00:05]} 52. Ra7 {[%emt 0:00:11]} Rb4 {[%emt 0:00:05]} 53. Kf3 {[%emt 0:00:06]} f5 {[%emt 0:00:07]} 54. exf5 {[%emt 0:00:08]} gxf5 {[%emt 0:00:06]} 55. Rh7 {[%emt 0:00:05]} Kxd5 {[%emt 0:00:04]} 56. Rxh5 {[%emt 0:00:05]} Ke6 {[%emt 0:00:05]} 57. Rh6+ {[%emt 0:00:05]} Ke5 {[%emt 0:00:05]} 58. Rh8 {[%emt 0:00:05]} Rb3+ {[%emt 0:00:05]} 59. Kg2 {[%emt 0:00:06]} Rb4 {[%emt 0:00:06]} 60. Kh3 {[%emt 0:00:04]} Rg4 {[%emt 0:00:05]} 61. Re8+ {[%emt 0:00:06]} Kf6 {[%emt 0:00:06]} 62. Rf8+ {[%emt 0:00:10]} Ke6 {[%emt 0:00:05]} 63. Ra8 {[%emt 0:00:04]} Rd4 {[%emt 0:00:06]} 64. Ra6+ {[%emt 0:00:05]} Ke5 {[%emt 0:00:04]} 65. Ra5+ {[%emt 0:00:04]} Kf6 {[%emt 0:00:05]} 66. Ra6+ {[%emt 0:00:05]} Ke5 {[%emt 0:00:05]} 67. h5 {[%emt 0:00:04]} Rd1 {[%emt 0:00:05]} 68. h6 {[%emt 0:00:06]} Rh1+ {[%emt 0:00:07]} 69. Kg2 {[%emt 0:00:04]} Rh5 {[%emt 0:00:05]} 70. Kf3 {[%emt 0:00:05]} Rh3 {[%emt 0:00:06]} 71. Ra5+ {[%emt 0:00:07]} Kf6 {[%emt 0:00:05]} 72. Ra6+ {[%emt 0:00:05]} Kg5 {[%emt 0:00:05]} 73. Rb6 {[%emt 0:00:09]} Rxh6 {[%emt 0:00:06]} 74. Rxh6 {[%emt 0:00:05]} Kxh6 {[%emt 0:00:04]} 75. Kf4 {[%emt 0:00:11]} Kg6 {[%emt 0:00:05]} 76. Ke5 {[%emt 0:00:11]} Kg5 {[%emt 0:00:05]} 77. Ke6 {[%emt 0:00:09]} Kg4 {[%emt 0:00:05]} 78. Kf6 {[%emt 0:00:04]} Kxg3 {[%emt 0:00:05]} 79. Kxf5 {[%emt 0:00:04]} 1/2-1/2

[Event "Deutscher Jugend Online Cup 2020"]
[Site "Tornelo"]
[Date "2020.11.14"]
[Round "3.2"]
[White "Lorenz, Veronika"]
[Black "Trunz, Michelle"]
[Result "0-1"]
[ECO "B90"]
[WhiteElo "1261"]
[BlackElo "1673"]
[Annotator "NA RC"]
[PlyCount "98"]
[EventDate "2020.11.13"]
[EventType "k.o."]
[SourceTitle "playchess.com"]
[Source "ChessBase"]
[SourceQuality "1"]
[TimeControl "600+3"]

1. e4 {[%emt 0:05:07]} c5 {[%emt 0:06:05]} 2. Nf3 {[%emt 0:00:07]} d6 {[%emt 0:00:05]} 3. d4 {[%emt 0:00:05]} cxd4 {[%emt 0:00:04]} 4. Nxd4 {[%emt 0:00:05]} Nf6 {[%emt 0:00:04]} 5. Nc3 {[%emt 0:00:05]} a6 {[%emt 0:00:04]} 6. Be3 {[%emt 0:00:06]} e5 {[%emt 0:00:04]} 7. Nb3 {[%emt 0:00:06]} Be6 {[%emt 0:00:05]} 8. Qd2 {[%emt 0:00:06]} Be7 {[%emt 0:00:05]} 9. O-O-O {[%emt 0:00:05]} O-O {[%emt 0:00:04]} 10. Be2 {[%emt 0:00:05]} Qc7 {[%emt 0:00:06]} 11. Kb1 {[%emt 0:00:07]} b5 {[%emt 0:00:06]} 12. Nd5 {[%emt 0:00:06]} Bxd5 {[%emt 0:00:05]} 13. exd5 {[%emt 0:00:04]} Nbd7 {[%emt 0:00:05]} 14. g4 {[%emt 0:00:07]} Ne4 {[%emt 0:00:06]} 15. Qd3 {[%emt 0:00:15]} Nec5 {[%emt 0:00:05]} 16. Nxc5 {[%emt 0:00:09]} Nxc5 {[%emt 0:00:05]} 17. Bxc5 {[%emt 0:00:05]} Qxc5 {[%emt 0:00:04]} 18. h4 {[%emt 0:00:10]} Rfc8 {[%emt 0:00:11]} 19. g5 {[%emt 0:00:14]} g6 {[%emt 0:00:11]} 20. Rdg1 {[%emt 0:00:15]} Kg7 {[%emt 0:00:07]} 21. h5 {[%emt 0:00:05]} Rh8 {[%emt 0:00:11]} 22. Qd2 {[%emt 0:00:20]} a5 {[%emt 0:00:15]} 23. Rg2 {[%emt 0:00:07]} a4 {[%emt 0:00:13]} 24. Rgh2 {[%emt 0:00:33]} b4 {[%emt 0:00:24]} 25. Rc1 {[%emt 0:00:33]} a3 {[%emt 0:00:10]} 26. b3 {[%emt 0:00:10]} Rhg8 {[%emt 0:00:44]} 27. Bc4 {[%emt 0:00:09]} Rac8 {[%emt 0:00:13]} 28. Rch1 {[%emt 0:00:06]} Rh8 {[%emt 0:00:07]} 29. Qd3 {[%emt 0:00:15]} Qd4 {[%emt 0:00:05]} 30. Qxd4 {[%emt 0:00:08]} exd4 {[%emt 0:00:05]} 31. Rg2 {[%emt 0:00:14]} gxh5 {[%emt 0:00:08]} 32. Rxh5 {[%emt 0:00:06]} Rcg8 {[%emt 0:00:06]} 33. Rh4 {[%emt 0:00:12]} Kf8 {[%emt 0:00:08]} 34. Rxd4 {[%emt 0:00:06]} Bxg5 {[%emt 0:00:09]} 35. Bd3 {[%emt 0:00:09]} Bf6 {[%emt 0:00:07]} 36. Rdg4 {[%emt 0:00:08]} Rxg4 {[%emt 0:00:06]} 37. Rxg4 {[%emt 0:00:06]} h5 {[%emt 0:00:05]} 38. Re4 {[%emt 0:00:14]} Rg8 {[%emt 0:00:10]} 39. Kc1 {[%emt 0:00:13]} Bc3 {[%emt 0:00:08]} 40. Kd1 {[%emt 0:00:09]} Rg1+ {[%emt 0:00:05]} 41. Ke2 {[%emt 0:00:05]} Re1+ {[%emt 0:00:04]} 42. Kf3 {[%emt 0:00:05]} Rxe4 {[%emt 0:00:05]} 43. Bxe4 {[%emt 0:00:06]} Kg7 {[%emt 0:00:04]} 44. Kg3 {[%emt 0:00:06]} Bf6 {[%emt 0:00:06]} 45. f4 {[%emt 0:00:12]} Kh6 {[%emt 0:00:05]} 46. f5 {[%emt 0:00:06]} Be5+ {[%emt 0:00:05]} 47. Kh4 {[%emt 0:00:05]} Bf6+ {[%emt 0:00:04]} 48. Kg3 {[%emt 0:00:05]} Be5+ {[%emt 0:00:05]} 49. Kh4 {[%emt 0:00:05]} Bf6+ {[%emt 0:00:04]} 0-1

[Event "Deutscher Jugend Online Cup 2020"]
[Site "Tornelo"]
[Date "2020.11.14"]
[Round "4.2"]
[White "Braeutigam, Katerina"]
[Black "Trunz, Michelle"]
[Result "0-1"]
[ECO "B23"]
[WhiteElo "1737"]
[BlackElo "1673"]
[Annotator "NA RC"]
[PlyCount "108"]
[EventDate "2020.11.13"]
[EventType "k.o."]
[SourceTitle "playchess.com"]
[Source "ChessBase"]
[SourceQuality "1"]
[TimeControl "600+3"]

1. e4 {[%emt 0:00:00]} c5 {[%emt 0:00:03]} 2. Nc3 {[%emt 0:00:04]} d6 {[%emt 0:00:02]} 3. d4 {[%emt 0:00:28]} cxd4 {[%emt 0:00:04]} 4. Qxd4 {[%emt 0:00:02]} Nf6 {[%emt 0:00:13]} 5. h3 {[%emt 0:00:20]} a6 {[%emt 0:00:06]} 6. Nf3 {[%emt 0:00:14]} Nc6 {[%emt 0:00:04]} 7. Qe3 {[%emt 0:00:06]} e6 {[%emt 0:00:10]} 8. Bc4 {[%emt 0:00:06]} b5 {[%emt 0:00:07]} 9. Bb3 {[%emt 0:00:02]} Bb7 {[%emt 0:00:09]} 10. Bd2 {[%emt 0:00:11]} Be7 {[%emt 0:00:06]} 11. O-O-O {[%emt 0:00:14]} Qc7 {[%emt 0:00:03]} 12. g4 {[%emt 0:00:13]} h6 {[%emt 0:00:14]} 13. Rhg1 {[%emt 0:00:33]} Nd7 {[%emt 0:00:23]} 14. g5 {[%emt 0:00:32]} O-O-O {[%emt 0:01:02]} 15. g6 {[%emt 0:00:17]} Bf6 {[%emt 0:01:10]} 16. Ne2 {[%emt 0:02:27]} Nc5 {[%emt 0:00:11]} 17. gxf7 {[%emt 0:00:32]} Qxf7 {[%emt 0:00:11]} 18. Bc3 {[%emt 0:00:48]} Nxb3+ {[%emt 0:00:38]} 19. axb3 {[%emt 0:00:04]} Rd7 {[%emt 0:00:42]} 20. Bxf6 {[%emt 0:00:43]} Qxf6 {[%emt 0:00:16]} 21. Ned4 {[%emt 0:00:55]} Nxd4 {[%emt 0:01:01]} 22. Nxd4 {[%emt 0:00:08]} d5 {[%emt 0:00:14]} 23. e5 {[%emt 0:00:20]} Qe7 {[%emt 0:00:18]} 24. Rg6 {[%emt 0:01:05]} Re8 {[%emt 0:00:31]} 25. Rdg1 {[%emt 0:00:30]} Qf7 {[%emt 0:00:23]} 26. Rxg7 {[%emt 0:00:12]} Qxg7 {[%emt 0:00:02]} 27. Rxg7 {[%emt 0:00:02]} Rxg7 {[%emt 0:00:02]} 28. Qxh6 {[%emt 0:00:02]} Rge7 {[%emt 0:00:13]} 29. h4 {[%emt 0:00:08]} Kd7 {[%emt 0:00:05]} 30. h5 {[%emt 0:00:04]} Rg8 {[%emt 0:00:11]} 31. Qf6 {[%emt 0:00:05]} Rgg7 {[%emt 0:00:12]} 32. h6 {[%emt 0:00:04]} Rh7 {[%emt 0:00:03]} 33. Nf3 {[%emt 0:00:04]} Rhf7 {[%emt 0:00:08]} 34. Qg6 {[%emt 0:00:02]} Rxf3 {[%emt 0:00:04]} 35. h7 {[%emt 0:00:02]} Rf8 {[%emt 0:00:11]} 36. Qg8 {[%emt 0:00:03]} Ree8 {[%emt 0:00:18]} 37. Qg7+ {[%emt 0:00:01]} Kc8 {[%emt 0:00:06]} 38. Qg6 {[%emt 0:00:05]} Bc6 {[%emt 0:00:06]} 39. Qg7 {[%emt 0:00:02]} Bd7 {[%emt 0:00:04]} 40. Qg6 {[%emt 0:00:03]} Rh8 {[%emt 0:00:07]} 41. Qg7 {[%emt 0:00:03]} Kc7 {[%emt 0:00:09]} 42. Qf7 {[%emt 0:00:03]} Kd8 {[%emt 0:00:12]} 43. Qg7 {[%emt 0:00:03]} Kc8 {[%emt 0:00:04]} 44. f4 {[%emt 0:00:02]} Ref8 {[%emt 0:00:15]} 45. Kd2 {[%emt 0:00:04]} Be8 {[%emt 0:00:20]} 46. Qa7 {[%emt 0:00:03]} Bd7 {[%emt 0:00:26]} 47. Qa8+ {[%emt 0:00:05]} Kc7 {[%emt 0:00:05]} 48. Qxa6 {[%emt 0:00:04]} Rxh7 {[%emt 0:00:08]} 49. Qd6+ {[%emt 0:00:02]} Kb7 {[%emt 0:00:08]} 50. Qc5 {[%emt 0:00:05]} Rc8 {[%emt 0:00:05]} 51. Qd6 {[%emt 0:00:03]} Rf7 {[%emt 0:00:03]} 52. c3 {[%emt 0:00:02]} Rc7 {[%emt 0:00:04]} 53. Qb4 {[%emt 0:00:04]} Rg7 {[%emt 0:00:04]} 54. Qd4 {[%emt 0:00:03]} Rg2+ {[%emt 0:00:02]} 0-1

[Event "Deutscher Jugend Online Cup 2020"]
[Site "Tornelo"]
[Date "2020.11.14"]
[Round "4.4"]
[White "Kutz, Ida"]
[Black "Trunz, Tamila"]
[Result "0-1"]
[ECO "A26"]
[WhiteElo "1269"]
[BlackElo "1379"]
[Annotator "NA RC"]
[PlyCount "148"]
[EventDate "2020.11.13"]
[EventType "k.o."]
[SourceTitle "playchess.com"]
[Source "ChessBase"]
[SourceQuality "1"]
[TimeControl "600+3"]

1. c4 {[%emt 0:00:00]} e5 {[%emt 0:00:04]} 2. Nc3 {[%emt 0:00:05]} f5 {[%emt 0:00:06]} 3. d3 {[%emt 0:00:13]} Nf6 {[%emt 0:00:03]} 4. Nf3 {[%emt 0:00:04]} Nc6 {[%emt 0:00:03]} 5. g3 {[%emt 0:00:03]} g6 {[%emt 0:00:05]} 6. Bg2 {[%emt 0:00:04]} Bg7 {[%emt 0:00:04]} 7. O-O {[%emt 0:00:15]} h6 {[%emt 0:00:03]} 8. e4 {[%emt 0:00:08]} O-O {[%emt 0:00:06]} 9. exf5 {[%emt 0:00:08]} gxf5 {[%emt 0:00:05]} 10. Nh4 {[%emt 0:00:09]} d6 {[%emt 0:00:05]} 11. Ng6 {[%emt 0:00:05]} Re8 {[%emt 0:00:04]} 12. Bd5+ {[%emt 0:00:13]} Kh7 {[%emt 0:00:04]} 13. Nh4 {[%emt 0:00:08]} Nxd5 {[%emt 0:00:04]} 14. Nxd5 {[%emt 0:00:07]} Ne7 {[%emt 0:00:21]} 15. Nxe7 {[%emt 0:00:08]} Qxe7 {[%emt 0:00:04]} 16. Qh5 {[%emt 0:00:25]} f4 {[%emt 0:00:09]} 17. Qg6+ {[%emt 0:00:23]} Kh8 {[%emt 0:00:06]} 18. Qh5 {[%emt 0:00:16]} e4 {[%emt 0:00:31]} 19. Ng6+ {[%emt 0:00:08]} Kh7 {[%emt 0:00:10]} 20. Nxe7 {[%emt 0:00:04]} Rxe7 {[%emt 0:00:03]} 21. dxe4 {[%emt 0:00:10]} Rxe4 {[%emt 0:00:06]} 22. Bxf4 {[%emt 0:00:14]} b6 {[%emt 0:00:12]} 23. Qd5 {[%emt 0:00:15]} Rxf4 {[%emt 0:00:25]} 24. Qxa8 {[%emt 0:00:32]} Rf8 {[%emt 0:00:04]} 25. Qe4+ {[%emt 0:00:05]} Bf5 {[%emt 0:00:05]} 26. Qb7 {[%emt 0:00:13]} Bh3 {[%emt 0:00:06]} 27. Rfe1 {[%emt 0:00:03]} h5 {[%emt 0:00:08]} 28. Qxc7 {[%emt 0:00:14]} Rf6 {[%emt 0:00:18]} 29. Re7 {[%emt 0:00:12]} Rg6 {[%emt 0:00:07]} 30. Qxd6 {[%emt 0:00:14]} Rxd6 {[%emt 0:00:05]} 31. f4 {[%emt 0:00:16]} Rd2 {[%emt 0:00:06]} 32. Rxa7 {[%emt 0:00:26]} Rxb2 {[%emt 0:00:04]} 33. Re1 {[%emt 0:00:14]} Kh6 {[%emt 0:00:16]} 34. Rd1 {[%emt 0:00:07]} Rg2+ {[%emt 0:00:14]} 35. Kh1 {[%emt 0:00:04]} Rc2 {[%emt 0:00:13]} 36. Rd6+ {[%emt 0:00:32]} Kh7 {[%emt 0:00:05]} 37. Rd1 {[%emt 0:00:13]} Rxc4 {[%emt 0:00:10]} 38. Kg1 {[%emt 0:00:12]} b5 {[%emt 0:00:13]} 39. Kf2 {[%emt 0:00:17]} Rc2+ {[%emt 0:00:08]} 40. Ke1 {[%emt 0:00:16]} Rxh2 {[%emt 0:00:42]} 41. Rdd7 {[%emt 0:00:10]} Bxd7 {[%emt 0:00:07]} 42. Rxd7 {[%emt 0:00:05]} Rxa2 {[%emt 0:00:03]} 43. Rb7 {[%emt 0:00:25]} Rb2 {[%emt 0:00:12]} 44. Rd7 {[%emt 0:00:06]} b4 {[%emt 0:00:04]} 45. Rd5 {[%emt 0:00:04]} b3 {[%emt 0:00:03]} 46. Rxh5+ {[%emt 0:00:03]} Kg8 {[%emt 0:00:07]} 47. Rb5 {[%emt 0:00:04]} Kf7 {[%emt 0:00:11]} 48. Rb7+ {[%emt 0:00:03]} Kg6 {[%emt 0:00:06]} 49. Rb6+ {[%emt 0:00:03]} Kh5 {[%emt 0:00:09]} 50. Rb5+ {[%emt 0:00:15]} Kg6 {[%emt 0:00:20]} 51. Rg5+ {[%emt 0:00:04]} Kf7 {[%emt 0:00:06]} 52. Rf5+ {[%emt 0:00:03]} Ke6 {[%emt 0:00:03]} 53. Rg5 {[%emt 0:00:10]} Bc3+ {[%emt 0:00:07]} 54. Kf1 {[%emt 0:00:10]} Rb1+ {[%emt 0:00:05]} 55. Kg2 {[%emt 0:00:03]} b2 {[%emt 0:00:06]} 56. Rg6+ {[%emt 0:00:06]} Kd5 {[%emt 0:00:03]} 57. Rb6 {[%emt 0:00:05]} Rg1+ {[%emt 0:00:08]} 58. Kxg1 {[%emt 0:00:12]} Bd4+ {[%emt 0:00:05]} 59. Kg2 {[%emt 0:00:01]} Bxb6 {[%emt 0:00:04]} 60. Kf3 {[%emt 0:00:02]} b1=Q {[%emt 0:00:04]} 61. Kg4 {[%emt 0:00:01]} Ke6 {[%emt 0:00:08]} 62. Kf3 {[%emt 0:00:07]} Kf5 {[%emt 0:00:06]} 63. g4+ {[%emt 0:00:03]} Kg6 {[%emt 0:00:04]} 64. Kg3 {[%emt 0:00:05]} Bc7 {[%emt 0:00:09]} 65. g5 {[%emt 0:00:08]} Bxf4+ {[%emt 0:00:05]} 66. Kxf4 {[%emt 0:00:02]} Qf5+ {[%emt 0:00:04]} 67. Ke3 {[%emt 0:00:02]} Qxg5+ {[%emt 0:00:03]} 68. Ke4 {[%emt 0:00:02]} Kf6 {[%emt 0:00:04]} 69. Kd4 {[%emt 0:00:03]} Ke6 {[%emt 0:00:03]} 70. Ke4 {[%emt 0:00:03]} Qg4+ {[%emt 0:00:03]} 71. Kd3 {[%emt 0:00:02]} Kd5 {[%emt 0:00:02]} 72. Kc2 {[%emt 0:00:02]} Kc4 {[%emt 0:00:05]} 73. Kb1 {[%emt 0:00:02]} Kb3 {[%emt 0:00:03]} 74. Ka1 {[%emt 0:00:02]} Qd1# {[%emt 0:00:03]} 0-1

[Event "Deutscher Jugend Online Cup 2020"]
[Site "Tornelo"]
[Date "2020.11.14"]
[Round "4.5"]
[White "Sickmann, Lisa"]
[Black "B___, L___"]
[Result "1-0"]
[ECO "B76"]
[WhiteElo "1510"]
[BlackElo "1348"]
[Annotator "NA RC"]
[PlyCount "89"]
[EventDate "2020.11.13"]
[EventType "k.o."]
[SourceTitle "playchess.com"]
[Source "ChessBase"]
[SourceQuality "1"]
[TimeControl "600+3"]

1. e4 {[%emt 0:00:00]} c5 {[%emt 0:00:03]} 2. Nf3 {[%emt 0:00:03]} g6 {[%emt 0:00:02]} 3. d4 {[%emt 0:00:02]} cxd4 {[%emt 0:00:02]} 4. Nxd4 {[%emt 0:00:02]} Nf6 {[%emt 0:00:09]} 5. Nc3 {[%emt 0:00:08]} Nc6 {[%emt 0:00:02]} 6. Be3 {[%emt 0:00:06]} d6 {[%emt 0:00:10]} 7. f3 {[%emt 0:00:04]} Bg7 {[%emt 0:00:03]} 8. Qd2 {[%emt 0:00:04]} O-O {[%emt 0:00:07]} 9. O-O-O {[%emt 0:00:03]} Nxd4 {[%emt 0:00:11]} 10. Bxd4 {[%emt 0:00:04]} Be6 {[%emt 0:00:01]} 11. g4 {[%emt 0:00:07]} Qa5 {[%emt 0:00:10]} 12. Kb1 {[%emt 0:00:13]} Rfc8 {[%emt 0:00:08]} 13. h4 {[%emt 0:00:16]} a6 {[%emt 0:00:18]} 14. h5 {[%emt 0:00:56]} b5 {[%emt 0:00:06]} 15. hxg6 {[%emt 0:00:42]} fxg6 {[%emt 0:00:04]} 16. g5 {[%emt 0:00:17]} b4 {[%emt 0:00:20]} 17. Nd5 {[%emt 0:00:38]} Nxd5 {[%emt 0:00:04]} 18. exd5 {[%emt 0:00:04]} Bxd5 {[%emt 0:00:05]} 19. Qh2 {[%emt 0:01:07]} Qxa2+ {[%emt 0:00:07]} 20. Kc1 {[%emt 0:00:03]} Bxd4 {[%emt 0:00:36]} 21. Qxh7+ {[%emt 0:00:32]} Kf8 {[%emt 0:00:03]} 22. Rxd4 {[%emt 0:00:16]} b3 {[%emt 0:01:17]} 23. Qh8+ {[%emt 0:00:22]} Bg8 {[%emt 0:00:04]} 24. Rf4+ {[%emt 0:00:14]} Ke8 {[%emt 0:00:08]} 25. Qxg8+ {[%emt 0:00:09]} Kd7 {[%emt 0:00:02]} 26. Bh3+ {[%emt 0:00:05]} Kc7 {[%emt 0:00:10]} 27. Bxc8 {[%emt 0:00:32]} Rxc8 {[%emt 0:00:04]} 28. Rc4+ {[%emt 0:00:15]} Kb7 {[%emt 0:00:04]} 29. Qxc8+ {[%emt 0:00:03]} Kb6 {[%emt 0:00:03]} 30. Qc7+ {[%emt 0:00:06]} Kb5 {[%emt 0:00:03]} 31. Qc6+ {[%emt 0:00:14]} Ka5 {[%emt 0:00:03]} 32. Ra4+ {[%emt 0:00:16]} Qxa4 {[%emt 0:00:07]} 33. Qxa4+ {[%emt 0:00:02]} Kxa4 {[%emt 0:00:02]} 34. Rh6 {[%emt 0:00:06]} Kb4 {[%emt 0:00:12]} 35. Rxg6 {[%emt 0:00:05]} a5 {[%emt 0:00:03]} 36. Re6 {[%emt 0:00:05]} a4 {[%emt 0:00:05]} 37. g6 {[%emt 0:00:03]} a3 {[%emt 0:00:09]} 38. bxa3+ {[%emt 0:00:04]} Kxa3 {[%emt 0:00:04]} 39. cxb3 {[%emt 0:00:02]} Kxb3 {[%emt 0:00:03]} 40. g7 {[%emt 0:00:02]} d5 {[%emt 0:00:09]} 41. g8=Q {[%emt 0:00:03]} d4 {[%emt 0:00:04]} 42. Rc6+ {[%emt 0:00:03]} Kb4 {[%emt 0:00:04]} 43. Qb8+ {[%emt 0:00:03]} Ka5 {[%emt 0:00:02]} 44. Rc7 {[%emt 0:00:05]} Ka6 {[%emt 0:00:04]} 45. Ra7# {[%emt 0:00:02]} 1-0